[Event "*** Titled Tuesday 3|2 Blitz"]
[Site "Chess.com"]
[Date "2015.05.05"]
[Round "2"]
[White "Cryptochess"]
[Black "iaraldinho"]
[Result "1-0"]
[WhiteElo "2384"]
[BlackElo "2300"]
[TimeControl "180+2"]
[EndTime "11:24:41 PDT"]
[Termination "Cryptochess won by resignation"]

1. e4 {[%clk 0:03:01.9]} 1... c5 {[%clk 0:03:00.6]} 2. Nc3 {[%clk 0:02:59.2]}
2... e6 {[%clk 0:03:01.6]} 3. g3 {[%clk 0:03:00.5]} 3... a6 {[%clk 0:03:02.5]}
4. Bg2 {[%clk 0:03:01.3]} 4... Nc6 {[%clk 0:03:03.8]} 5. d3 {[%clk 0:03:02.6]}
5... Nf6 {[%clk 0:03:05.2]} 6. Nge2 {[%clk 0:02:59.5]} 6... d5 {[%clk
0:03:06.3]} 7. exd5 {[%clk 0:03:00.1]} 7... exd5 {[%clk 0:03:07.6]} 8. d4 {[%clk
0:03:01.6]} 8... Bg4 {[%clk 0:03:04.8]} 9. h3 {[%clk 0:02:52.7]} 9... Bxe2
{[%clk 0:03:05.3]} 10. Qxe2+ {[%clk 0:02:52.7]} 10... Be7 {[%clk 0:03:01.1]} 11.
dxc5 {[%clk 0:02:48.5]} 11... O-O {[%clk 0:03:01.6]} 12. O-O {[%clk 0:02:49.1]}
12... d4 {[%clk 0:02:59.9]} 13. Ne4 {[%clk 0:02:48.3]} 13... Nxe4 {[%clk
0:03:00.5]} 14. Bxe4 {[%clk 0:02:49.4]} 14... g6 {[%clk 0:02:57]} 15. Rd1 {[%clk
0:01:59.4]} 15... Bxc5 {[%clk 0:02:49.1]} 16. Bxc6 {[%clk 0:01:54.9]} 16... bxc6
{[%clk 0:02:45.4]} 17. Qc4 {[%clk 0:01:56.5]} 17... Qe7 {[%clk 0:02:39.6]} 18.
Bf4 {[%clk 0:01:52.6]} 18... Rfe8 {[%clk 0:02:36.7]} 19. Kf1 {[%clk 0:01:37.7]}
19... Qe4 {[%clk 0:02:15.6]} 20. Kg1 {[%clk 0:01:27.6]} 20... Ba7 {[%clk
0:02:10]} 21. Re1 {[%clk 0:01:14.9]} 21... Qf3 {[%clk 0:02:04.8]} 22. Qd3 {[%clk
0:01:01.6]} 22... Qxd3 {[%clk 0:01:21.9]} 23. cxd3 {[%clk 0:01:03.5]} 23... Rac8
{[%clk 0:01:22.2]} 24. Kf1 {[%clk 0:01:00.3]} 24... f6 {[%clk 0:01:21.9]} 25. h4
{[%clk 0:00:58.4]} 25... Kf7 {[%clk 0:01:23]} 26. Rac1 {[%clk 0:00:58.4]} 26...
Re6 {[%clk 0:01:14]} 27. Rc4 {[%clk 0:00:57.1]} 27... Rce8 {[%clk 0:01:09.1]}
28. Rxe6 {[%clk 0:00:55.3]} 28... Rxe6 {[%clk 0:01:11]} 29. Ra4 {[%clk 0:00:56]}
29... c5 {[%clk 0:01:11.3]} 30. Rc4 {[%clk 0:00:55.1]} 30... Ke7 {[%clk
0:01:09]} 31. b4 {[%clk 0:00:50.6]} 31... Rc6 {[%clk 0:01:06.8]} 32. Ke2 {[%clk
0:00:37.8]} 32... Ke6 {[%clk 0:01:06.5]} 33. bxc5 {[%clk 0:00:37.7]} 33... Rxc5
{[%clk 0:01:05.1]} 34. Rxc5 {[%clk 0:00:28.7]} 34... Bxc5 {[%clk 0:01:05.7]} 35.
Kf3 {[%clk 0:00:30.6]} 35... f5 {[%clk 0:01:05.8]} 36. Bd2 {[%clk 0:00:30.6]}
36... Bd6 {[%clk 0:01:01]} 37. g4 {[%clk 0:00:28.1]} 37... Be7 {[%clk
0:00:56.7]} 38. h5 {[%clk 0:00:27.6]} 38... fxg4+ {[%clk 0:00:55.6]} 39. Kxg4
{[%clk 0:00:29.5]} 39... gxh5+ {[%clk 0:00:57.2]} 40. Kxh5 {[%clk 0:00:31.4]}
40... Kf5 {[%clk 0:00:58.5]} 41. Kh6 {[%clk 0:00:30.8]} 41... Kg4 {[%clk
0:00:37.8]} 42. f4 {[%clk 0:00:15.3]} 42... Bd6 {[%clk 0:00:30.4]} 43. Kxh7
{[%clk 0:00:09.9]} 43... Bxf4 {[%clk 0:00:31.4]} 44. Ba5 {[%clk 0:00:07.7]}
44... Kf3 {[%clk 0:00:32]} 45. Kg6 {[%clk 0:00:07.7]} 45... Ke2 {[%clk 0:00:32]}
46. Kf5 {[%clk 0:00:08.5]} 46... Be3 {[%clk 0:00:33.5]} 47. Ke4 {[%clk
0:00:09.7]} 47... Kd1 {[%clk 0:00:24.3]} 48. Bb6 {[%clk 0:00:10.9]} 48... Kc2
{[%clk 0:00:25.3]} 49. Bxd4 {[%clk 0:00:12.5]} 49... Bg5 {[%clk 0:00:26.8]} 50.
Bc5 {[%clk 0:00:10.8]} 50... Kb2 {[%clk 0:00:27.5]} 51. a3 {[%clk 0:00:12.2]}
51... Kb3 {[%clk 0:00:28.6]} 52. d4 {[%clk 0:00:13.4]} 52... Kc4 {[%clk
0:00:26.3]} 53. Bf8 {[%clk 0:00:14.4]} 53... a5 {[%clk 0:00:23]} 54. d5 {[%clk
0:00:15.5]} 54... a4 {[%clk 0:00:21.3]} 55. Ke5 {[%clk 0:00:16.1]} 55... Kb5
{[%clk 0:00:20.3]} 56. Ke6 {[%clk 0:00:17]} 56... Bc1 {[%clk 0:00:16.7]} 57. d6
{[%clk 0:00:13.4]} 57... Bf4 {[%clk 0:00:09.8]} 58. d7 {[%clk 0:00:14.2]} 58...
Bc7 {[%clk 0:00:11.1]} 59. Bb4 {[%clk 0:00:13.8]} 59... Kc6 {[%clk 0:00:10.9]}
60. Ke7 {[%clk 0:00:14.3]} 60... Bb6 {[%clk 0:00:12.5]} 61. Ke8 {[%clk 0:00:12]}
61... Bc7 {[%clk 0:00:13.8]} 62. Be7 {[%clk 0:00:13]} 62... Bb6 {[%clk 0:00:15]}
63. Bd8 {[%clk 0:00:14]} 63... Be3 {[%clk 0:00:12.7]} 64. Ba5 {[%clk 0:00:14.6]}
64... Bg5 {[%clk 0:00:13.8]} 65. Bb4 {[%clk 0:00:16]} 65... Bd8 {[%clk
0:00:03.2]} 66. Kxd8 {[%clk 0:00:16.2]} 1-0

[Event "*** Titled Tuesday 3|2 Blitz"]
[Site "Chess.com"]
[Date "2015.05.05"]
[Round "2"]
[White "GMHess"]
[Black "pKiLz5Rn9b"]
[Result "1/2-1/2"]
[WhiteElo "2518"]
[BlackElo "2260"]
[TimeControl "180+2"]
[EndTime "11:26:23 PDT"]
[Termination "Game drawn - insufficient material"]

1. b3 {[%clk 0:03:01.9]} 1... Nf6 {[%clk 0:02:58.4]} 2. Bb2 {[%clk 0:03:03.8]}
2... g6 {[%clk 0:02:59.8]} 3. Bxf6 {[%clk 0:03:03.3]} 3... exf6 {[%clk
0:03:00.8]} 4. c4 {[%clk 0:03:05]} 4... Bg7 {[%clk 0:03:01.8]} 5. Nc3 {[%clk
0:03:06.9]} 5... O-O {[%clk 0:03:02.7]} 6. h4 {[%clk 0:03:07.9]} 6... f5 {[%clk
0:02:59.6]} 7. h5 {[%clk 0:03:08.9]} 7... c6 {[%clk 0:02:59.7]} 8. e3 {[%clk
0:03:06.4]} 8... d5 {[%clk 0:02:59.7]} 9. hxg6 {[%clk 0:03:06.7]} 9... fxg6
{[%clk 0:02:44.9]} 10. cxd5 {[%clk 0:03:07.5]} 10... cxd5 {[%clk 0:02:38.9]} 11.
Nxd5 {[%clk 0:03:06.6]} 11... Bxa1 {[%clk 0:02:33.7]} 12. Qxa1 {[%clk
0:03:08.5]} 12... Be6 {[%clk 0:02:34.2]} 13. Nf4 {[%clk 0:03:08.1]} 13... Bf7
{[%clk 0:02:24.4]} 14. Nf3 {[%clk 0:02:44.3]} 14... Nd7 {[%clk 0:02:03.2]} 15.
Be2 {[%clk 0:01:58]} 15... Qf6 {[%clk 0:02:01.5]} 16. d4 {[%clk 0:01:58.8]}
16... Rfe8 {[%clk 0:01:57.4]} 17. Bb5 {[%clk 0:01:51.6]} 17... Rad8 {[%clk
0:01:45.9]} 18. O-O {[%clk 0:01:47.9]} 18... a6 {[%clk 0:01:39.5]} 19. Bxd7
{[%clk 0:01:47.7]} 19... Rxd7 {[%clk 0:01:40.7]} 20. Ne5 {[%clk 0:01:41.9]}
20... Rc7 {[%clk 0:01:33.4]} 21. Qd1 {[%clk 0:01:38.1]} 21... Rd8 {[%clk
0:01:23.3]} 22. Qf3 {[%clk 0:01:29]} 22... Qd6 {[%clk 0:00:58.7]} 23. Qg3 {[%clk
0:01:20.8]} 23... Re7 {[%clk 0:00:51.5]} 24. Qg5 {[%clk 0:01:17.8]} 24... Rc8
{[%clk 0:00:42.4]} 25. Kh2 {[%clk 0:00:56.1]} 25... Rc2 {[%clk 0:00:23]} 26. Kg3
{[%clk 0:00:56.6]} 26... Rxa2 {[%clk 0:00:21.6]} 27. Rh1 {[%clk 0:00:47.4]}
27... Rxe5 {[%clk 0:00:19.7]} 28. dxe5 {[%clk 0:00:45.9]} 28... Qxe5 {[%clk
0:00:21.4]} 29. Qd8+ {[%clk 0:00:25.8]} 29... Kg7 {[%clk 0:00:22]} 30. Qh4
{[%clk 0:00:26.2]} 30... Bg8 {[%clk 0:00:14.5]} 31. Qh6+ {[%clk 0:00:26.9]}
31... Kf7 {[%clk 0:00:14.9]} 32. Rd1 {[%clk 0:00:22.5]} 32... Qb2 {[%clk
0:00:10.1]} 33. Nh3 {[%clk 0:00:17.2]} 33... Qf6 {[%clk 0:00:06.5]} 34. Rd7+
{[%clk 0:00:11.2]} 34... Ke8 {[%clk 0:00:07.8]} 35. Rg7 {[%clk 0:00:07.7]} 35...
Bd5 {[%clk 0:00:08.5]} 36. Qxh7 {[%clk 0:00:07.9]} 36... Bf7 {[%clk 0:00:04.1]}
37. Qh8+ {[%clk 0:00:08.4]} 37... Ke7 {[%clk 0:00:05.2]} 38. Qh6 {[%clk
0:00:07]} 38... Qe5+ {[%clk 0:00:06.1]} 39. Kh4 {[%clk 0:00:07]} 39... Rc2
{[%clk 0:00:05.3]} 40. Ng5 {[%clk 0:00:06]} 40... Qh2+ {[%clk 0:00:06.2]} 41.
Nh3 {[%clk 0:00:07]} 41... Qe5 {[%clk 0:00:07.3]} 42. Qg5+ {[%clk 0:00:07.9]}
42... Kf8 {[%clk 0:00:08.3]} 43. Rh7 {[%clk 0:00:09.1]} 43... Rd2 {[%clk
0:00:04.9]} 44. Qf4 {[%clk 0:00:08.8]} 44... Qxf4+ {[%clk 0:00:06.1]} 45. exf4
{[%clk 0:00:10]} 45... Rd3 {[%clk 0:00:07]} 46. Ng5 {[%clk 0:00:10.5]} 46...
Bxb3 {[%clk 0:00:08.2]} 47. Rxb7 {[%clk 0:00:11.5]} 47... a5 {[%clk 0:00:09.8]}
48. Rb6 {[%clk 0:00:08.6]} 48... Kg7 {[%clk 0:00:10]} 49. Rb7+ {[%clk
0:00:08.8]} 49... Kf8 {[%clk 0:00:11.5]} 50. Ra7 {[%clk 0:00:09.8]} 50... a4
{[%clk 0:00:12.6]} 51. Nh7+ {[%clk 0:00:11.3]} 51... Ke8 {[%clk 0:00:13.2]} 52.
Kg5 {[%clk 0:00:12.8]} 52... Rd2 {[%clk 0:00:13.9]} 53. Kxg6 {[%clk 0:00:10.9]}
53... Rxf2 {[%clk 0:00:15.1]} 54. g3 {[%clk 0:00:12]} 54... Rf3 {[%clk
0:00:15.7]} 55. Nf6+ {[%clk 0:00:13]} 55... Kd8 {[%clk 0:00:16.8]} 56. Nh5
{[%clk 0:00:13.6]} 56... a3 {[%clk 0:00:15.9]} 57. Rxa3 {[%clk 0:00:10.7]} 57...
Bf7+ {[%clk 0:00:17.1]} 58. Kxf7 {[%clk 0:00:12.1]} 58... Rxa3 {[%clk
0:00:18.5]} 59. Kg6 {[%clk 0:00:13.6]} 59... Ke7 {[%clk 0:00:18.4]} 60. Kxf5
{[%clk 0:00:14.3]} 60... Kf7 {[%clk 0:00:20]} 61. Kg5 {[%clk 0:00:14.6]} 61...
Ra5+ {[%clk 0:00:21.1]} 62. f5 {[%clk 0:00:15.9]} 62... Ra3 {[%clk 0:00:21.7]}
63. g4 {[%clk 0:00:17]} 63... Ra8 {[%clk 0:00:23]} 64. Nf4 {[%clk 0:00:17.9]}
64... Ra6 {[%clk 0:00:23.2]} 65. Ng6 {[%clk 0:00:17.9]} 65... Rb6 {[%clk
0:00:18.3]} 66. Ne5+ {[%clk 0:00:18.4]} 66... Kg7 {[%clk 0:00:19.7]} 67. Nd3
{[%clk 0:00:17.3]} 67... Rd6 {[%clk 0:00:20.5]} 68. Nf4 {[%clk 0:00:18.7]} 68...
Kf7 {[%clk 0:00:22]} 69. Kh5 {[%clk 0:00:19.7]} 69... Rd4 {[%clk 0:00:21.4]} 70.
Ne6 {[%clk 0:00:19.5]} 70... Rd1 {[%clk 0:00:22.3]} 71. Kg5 {[%clk 0:00:16.6]}
71... Rd5 {[%clk 0:00:21.9]} 72. Nf4 {[%clk 0:00:17.5]} 72... Rb5 {[%clk
0:00:20.9]} 73. Nh5 {[%clk 0:00:15]} 73... Ra5 {[%clk 0:00:20]} 74. Ng3 {[%clk
0:00:15.4]} 74... Ra4 {[%clk 0:00:20.6]} 75. Nf1 {[%clk 0:00:15]} 75... Ra3
{[%clk 0:00:21.2]} 76. Nd2 {[%clk 0:00:15.9]} 76... Re3 {[%clk 0:00:21.8]} 77.
Kf4 {[%clk 0:00:16.1]} 77... Re2 {[%clk 0:00:21.9]} 78. Ne4 {[%clk 0:00:17.2]}
78... Re1 {[%clk 0:00:21.8]} 79. g5 {[%clk 0:00:18.5]} 79... Rf1+ {[%clk
0:00:23.1]} 80. Ke5 {[%clk 0:00:19.4]} 80... Rg1 {[%clk 0:00:24.5]} 81. Kd5
{[%clk 0:00:11.2]} 81... Rd1+ {[%clk 0:00:22.2]} 82. Ke5 {[%clk 0:00:11.3]}
82... Rg1 {[%clk 0:00:23.9]} 83. Kf4 {[%clk 0:00:11.2]} 83... Rf1+ {[%clk
0:00:24.9]} 84. Kg4 {[%clk 0:00:11.8]} 84... Rg1+ {[%clk 0:00:26]} 85. Kf4
{[%clk 0:00:12.2]} 85... Rf1+ {[%clk 0:00:27.2]} 86. Ke5 {[%clk 0:00:14.1]}
86... Rg1 {[%clk 0:00:28.4]} 87. Nd6+ {[%clk 0:00:12.5]} 87... Kg7 {[%clk
0:00:27.4]} 88. f6+ {[%clk 0:00:11.8]} 88... Kg6 {[%clk 0:00:28.5]} 89. f7
{[%clk 0:00:10]} 89... Rf1 {[%clk 0:00:27.7]} 90. Ke6 {[%clk 0:00:07.4]} 90...
Kxg5 {[%clk 0:00:26.5]} 91. Ke7 {[%clk 0:00:08.2]} 91... Rxf7+ {[%clk 0:00:27]}
92. Nxf7+ {[%clk 0:00:10.1]} 1/2-1/2

[Event "*** Titled Tuesday 3|2 Blitz"]
[Site "Chess.com"]
[Date "2015.05.05"]
[Round "3"]
[White "iaraldinho"]
[Black "AlexanderL"]
[Result "0-1"]
[WhiteElo "2296"]
[BlackElo "2526"]
[TimeControl "180+2"]
[EndTime "11:30:51 PDT"]
[Termination "AlexanderL won by resignation"]

1. e4 {[%clk 0:03:01.9]} 1... e6 {[%clk 0:03:01.9]} 2. d4 {[%clk 0:03:02]} 2...
d5 {[%clk 0:03:02.9]} 3. Nc3 {[%clk 0:03:03.9]} 3... Nf6 {[%clk 0:03:03.3]} 4.
Bg5 {[%clk 0:03:04.2]} 4... dxe4 {[%clk 0:03:03.3]} 5. Nxe4 {[%clk 0:03:05]}
5... Be7 {[%clk 0:03:04.7]} 6. Bxf6 {[%clk 0:03:06.2]} 6... gxf6 {[%clk
0:03:06.6]} 7. Nf3 {[%clk 0:03:06]} 7... a6 {[%clk 0:03:07.2]} 8. Bd3 {[%clk
0:03:06.6]} 8... f5 {[%clk 0:03:04.5]} 9. Ng3 {[%clk 0:03:07.6]} 9... c5 {[%clk
0:03:05.5]} 10. dxc5 {[%clk 0:03:01.5]} 10... Nd7 {[%clk 0:02:53.5]} 11. Qe2
{[%clk 0:02:47.8]} 11... Nxc5 {[%clk 0:02:53.3]} 12. O-O-O {[%clk 0:02:42.2]}
12... Qa5 {[%clk 0:02:54]} 13. Kb1 {[%clk 0:02:43]} 13... Na4 {[%clk 0:02:53.2]}
14. c4 {[%clk 0:02:30.9]} 14... Bf6 {[%clk 0:02:37.1]} 15. Rd2 {[%clk
0:02:24.5]} 15... Bxb2 {[%clk 0:02:36.3]} 16. Rc2 {[%clk 0:02:14.6]} 16... Nc3+
{[%clk 0:02:07.9]} 17. Rxc3 {[%clk 0:02:15]} 17... Bxc3 {[%clk 0:02:09.8]} 18.
Rc1 {[%clk 0:02:06.5]} 18... Qb4+ {[%clk 0:02:09.5]} 19. Kc2 {[%clk 0:02:07.3]}
19... Bd7 {[%clk 0:02:09.2]} 20. Kd1 {[%clk 0:02:07]} 20... Ba4+ {[%clk
0:02:10.1]} 0-1

[Event "*** Titled Tuesday 3|2 Blitz"]
[Site "Chess.com"]
[Date "2015.05.05"]
[Round "3"]
[White "Zvonokchess"]
[Black "hellokostya"]
[Result "0-1"]
[WhiteElo "2486"]
[BlackElo "2274"]
[TimeControl "180+2"]
[EndTime "11:33:51 PDT"]
[Termination "hellokostya won on time"]

1. e4 {[%clk 0:03:01.9]} 1... e5 {[%clk 0:03:00.2]} 2. Nf3 {[%clk 0:02:59.3]}
2... Nc6 {[%clk 0:03:01.4]} 3. Nc3 {[%clk 0:03:00.6]} 3... Nf6 {[%clk
0:03:01.8]} 4. Be2 {[%clk 0:03:01.9]} 4... d5 {[%clk 0:02:57.2]} 5. exd5 {[%clk
0:03:02.6]} 5... Nxd5 {[%clk 0:02:59.1]} 6. O-O {[%clk 0:03:04.5]} 6... Be7
{[%clk 0:02:55.9]} 7. d4 {[%clk 0:02:53.7]} 7... Nxc3 {[%clk 0:02:49.4]} 8. bxc3
{[%clk 0:02:54.3]} 8... Qd6 {[%clk 0:02:09.5]} 9. a4 {[%clk 0:01:36.3]} 9...
exd4 {[%clk 0:01:46.9]} 10. Ba3 {[%clk 0:01:30.9]} 10... Qd5 {[%clk 0:01:42.5]}
11. Bxe7 {[%clk 0:01:13.7]} 11... Nxe7 {[%clk 0:01:44.4]} 12. cxd4 {[%clk
0:01:05]} 12... O-O {[%clk 0:01:45.4]} 13. c4 {[%clk 0:01:05.7]} 13... Qd6
{[%clk 0:01:38]} 14. h3 {[%clk 0:01:05.8]} 14... c5 {[%clk 0:01:36.2]} 15. d5
{[%clk 0:01:01.3]} 15... Ng6 {[%clk 0:01:35.6]} 16. Bd3 {[%clk 0:00:53.8]} 16...
Nf4 {[%clk 0:01:17.4]} 17. Re1 {[%clk 0:00:51.3]} 17... Bd7 {[%clk 0:01:17.4]}
18. Bc2 {[%clk 0:00:43.3]} 18... Rfe8 {[%clk 0:01:14.6]} 19. Qd2 {[%clk
0:00:44.2]} 19... Qf6 {[%clk 0:01:09.8]} 0-1

[Event "*** Titled Tuesday 3|2 Blitz"]
[Site "Chess.com"]
[Date "2015.05.05"]
[Round "3"]
[White "brauliocuarta"]
[Black "Mvpag"]
[Result "1-0"]
[WhiteElo "2071"]
[BlackElo "1947"]
[TimeControl "180+2"]
[EndTime "11:34:22 PDT"]
[Termination "brauliocuarta won by resignation"]

1. d4 {[%clk 0:03:01.9]} 1... d5 {[%clk 0:03:01]} 2. c4 {[%clk 0:03:01.9]} 2...
e6 {[%clk 0:03:02]} 3. Nc3 {[%clk 0:03:02]} 3... Nf6 {[%clk 0:03:03.4]} 4. Nf3
{[%clk 0:03:02.7]} 4... Be7 {[%clk 0:03:04.1]} 5. Bf4 {[%clk 0:03:01.7]} 5... a6
{[%clk 0:03:04.6]} 6. cxd5 {[%clk 0:03:01.6]} 6... exd5 {[%clk 0:03:05.3]} 7.
Qc2 {[%clk 0:02:59.4]} 7... c6 {[%clk 0:03:05]} 8. e3 {[%clk 0:03:00]} 8... Nbd7
{[%clk 0:03:04.6]} 9. O-O-O {[%clk 0:02:57.5]} 9... Nf8 {[%clk 0:02:56.4]} 10.
Ne5 {[%clk 0:02:52.2]} 10... Ng6 {[%clk 0:02:53.8]} 11. Bg3 {[%clk 0:02:49.9]}
11... O-O {[%clk 0:02:47]} 12. h4 {[%clk 0:02:43]} 12... Nh5 {[%clk 0:02:44.4]}
13. Bd3 {[%clk 0:02:32.7]} 13... Nxg3 {[%clk 0:02:40.4]} 14. Nxg6 {[%clk
0:02:23.5]} 14... fxg6 {[%clk 0:02:36]} 15. fxg3 {[%clk 0:02:22.9]} 15... Bf5
{[%clk 0:02:33.7]} 16. h5 {[%clk 0:02:21.5]} 16... Bxd3 {[%clk 0:02:17.6]} 17.
Qxd3 {[%clk 0:02:21.1]} 17... gxh5 {[%clk 0:02:03.8]} 18. Rxh5 {[%clk
0:02:20.2]} 18... h6 {[%clk 0:01:49.9]} 19. Rxh6 {[%clk 0:02:18.5]} 19... gxh6
{[%clk 0:00:53.4]} 20. Qg6+ {[%clk 0:02:16]} 20... Kh8 {[%clk 0:00:53.7]} 21.
Qxh6+ {[%clk 0:02:16.6]} 21... Kg8 {[%clk 0:00:54.9]} 22. Qg6+ {[%clk
0:02:17.4]} 22... Kh8 {[%clk 0:00:55.9]} 23. Rh1+ {[%clk 0:02:17.3]} 23... Bh4
{[%clk 0:00:52.3]} 24. Rxh4+ {[%clk 0:02:17.7]} 24... Qxh4 {[%clk 0:00:53.1]}
25. gxh4 {[%clk 0:02:19.2]} 25... Rf1+ {[%clk 0:00:45.8]} 26. Kc2 {[%clk
0:02:19.3]} 26... Raf8 {[%clk 0:00:47.4]} 27. h5 {[%clk 0:02:10.8]} 27... R1f6
{[%clk 0:00:45.4]} 28. Qg5 {[%clk 0:02:08.5]} 28... Rf5 {[%clk 0:00:44.3]} 29.
Qh6+ {[%clk 0:02:07]} 29... Kg8 {[%clk 0:00:44.5]} 30. g4 {[%clk 0:02:08.5]}
30... Rf2+ {[%clk 0:00:30.5]} 31. Kb3 {[%clk 0:02:05.8]} 31... Rg2 {[%clk
0:00:31.7]} 32. g5 {[%clk 0:01:51.6]} 32... Rff2 {[%clk 0:00:32.1]} 33. Qe6+
{[%clk 0:01:47.2]} 33... Kh8 {[%clk 0:00:26.5]} 34. Nd1 {[%clk 0:01:39.4]} 34...
Rd2 {[%clk 0:00:21.1]} 35. h6 {[%clk 0:01:38.3]} 35... Rxd1 {[%clk 0:00:13]} 36.
Qf6+ {[%clk 0:01:36.6]} 1-0

[Event "*** Titled Tuesday 3|2 Blitz"]
[Site "Chess.com"]
[Date "2015.05.05"]
[Round "3"]
[White "GregShahade"]
[Black "Lovlas"]
[Result "1-0"]
[WhiteElo "2448"]
[BlackElo "2240"]
[TimeControl "180+2"]
[EndTime "11:34:42 PDT"]
[Termination "GregShahade won by resignation"]

1. e4 {[%clk 0:03:01.9]} 1... e6 {[%clk 0:03:00.9]} 2. d4 {[%clk 0:02:58.1]}
2... d5 {[%clk 0:03:01.9]} 3. Nd2 {[%clk 0:02:56]} 3... Nf6 {[%clk 0:03:03]} 4.
e5 {[%clk 0:02:56.6]} 4... Nfd7 {[%clk 0:03:03.2]} 5. c3 {[%clk 0:02:58.1]} 5...
c5 {[%clk 0:03:04.8]} 6. Bd3 {[%clk 0:02:59.3]} 6... Nc6 {[%clk 0:03:06.3]} 7.
Ne2 {[%clk 0:03:00.8]} 7... cxd4 {[%clk 0:03:07.9]} 8. cxd4 {[%clk 0:03:02.5]}
8... f6 {[%clk 0:03:09.7]} 9. exf6 {[%clk 0:03:04.2]} 9... Nxf6 {[%clk
0:03:11.6]} 10. O-O {[%clk 0:03:05]} 10... Bd6 {[%clk 0:03:13.3]} 11. Nf3 {[%clk
0:03:06]} 11... Qc7 {[%clk 0:03:15.1]} 12. g3 {[%clk 0:03:04]} 12... O-O {[%clk
0:03:14.6]} 13. Bf4 {[%clk 0:03:05.3]} 13... Bd7 {[%clk 0:03:16]} 14. Rc1 {[%clk
0:02:57.1]} 14... Be8 {[%clk 0:03:06.1]} 15. Bxd6 {[%clk 0:02:48]} 15... Qxd6
{[%clk 0:03:08]} 16. Nf4 {[%clk 0:02:49.4]} 16... Ne4 {[%clk 0:02:45.7]} 17.
Bxe4 {[%clk 0:02:13.4]} 17... dxe4 {[%clk 0:02:44]} 18. Ng5 {[%clk 0:02:13.4]}
18... Rxf4 {[%clk 0:02:36.8]} 19. gxf4 {[%clk 0:02:13.9]} 19... Qxf4 {[%clk
0:02:38.7]} 20. Nxe6 {[%clk 0:02:09.1]} 20... Qf5 {[%clk 0:02:32.2]} 21. d5
{[%clk 0:01:32.9]} 21... Bh5 {[%clk 0:02:30.1]} 22. f3 {[%clk 0:01:01.7]} 22...
Ne5 {[%clk 0:02:13.9]} 23. Qd2 {[%clk 0:00:32.1]} 23... Nxf3+ {[%clk 0:01:57.2]}
24. Rxf3 {[%clk 0:00:31.4]} 24... Bxf3 {[%clk 0:01:56]} 25. Qg5 {[%clk
0:00:26.8]} 25... Qxg5+ {[%clk 0:01:48.6]} 26. Nxg5 {[%clk 0:00:28.7]} 26... Rd8
{[%clk 0:01:24.1]} 27. Kf2 {[%clk 0:00:28.2]} 27... Bh5 {[%clk 0:01:15.4]} 28.
Rc7 {[%clk 0:00:23.9]} 28... Bg6 {[%clk 0:01:13]} 29. Ne6 {[%clk 0:00:22.6]}
29... Rxd5 {[%clk 0:01:12.9]} 30. Rxg7+ {[%clk 0:00:22]} 30... Kh8 {[%clk
0:01:14.1]} 31. Rxb7 {[%clk 0:00:22.6]} 31... Rd2+ {[%clk 0:01:07.5]} 32. Ke1
{[%clk 0:00:19.1]} 1-0

[Event "*** Titled Tuesday 3|2 Blitz"]
[Site "Chess.com"]
[Date "2015.05.05"]
[Round "3"]
[White "Schemato"]
[Black "ViennaRocket"]
[Result "1-0"]
[WhiteElo "2119"]
[BlackElo "2255"]
[TimeControl "180+2"]
[EndTime "11:35:11 PDT"]
[Termination "Schemato won by resignation"]

1. c4 {[%clk 0:03:01.9]} 1... f5 {[%clk 0:03:00.1]} 2. g3 {[%clk 0:03:01.9]}
2... Nf6 {[%clk 0:03:01.3]} 3. Bg2 {[%clk 0:03:03.3]} 3... g6 {[%clk 0:03:02.8]}
4. Nc3 {[%clk 0:03:04]} 4... Bg7 {[%clk 0:03:04.2]} 5. d3 {[%clk 0:03:05.6]}
5... d6 {[%clk 0:03:04.6]} 6. e4 {[%clk 0:03:07.1]} 6... fxe4 {[%clk 0:03:05.8]}
7. dxe4 {[%clk 0:03:06.8]} 7... c5 {[%clk 0:03:07.3]} 8. Nge2 {[%clk 0:03:07.9]}
8... Nc6 {[%clk 0:03:08.3]} 9. O-O {[%clk 0:03:08]} 9... O-O {[%clk 0:03:09.5]}
10. h3 {[%clk 0:03:09.2]} 10... e5 {[%clk 0:03:08]} 11. f4 {[%clk 0:03:09.6]}
11... Nd4 {[%clk 0:03:06.1]} 12. f5 {[%clk 0:03:01.7]} 12... gxf5 {[%clk
0:02:58.3]} 13. exf5 {[%clk 0:03:02.5]} 13... Nxf5 {[%clk 0:02:58.9]} 14. Bg5
{[%clk 0:02:54.9]} 14... Nd4 {[%clk 0:02:13.1]} 15. Nd5 {[%clk 0:02:35.8]} 15...
Be6 {[%clk 0:02:12.4]} 16. Nec3 {[%clk 0:02:34]} 16... h6 {[%clk 0:01:56.3]} 17.
Bh4 {[%clk 0:02:32.6]} 17... Nf5 {[%clk 0:01:53.2]} 18. Bxf6 {[%clk 0:02:19.8]}
18... Bxf6 {[%clk 0:01:51.8]} 19. g4 {[%clk 0:02:16]} 19... Nd4 {[%clk
0:01:47.7]} 20. Nxf6+ {[%clk 0:02:09.3]} 20... Rxf6 {[%clk 0:01:48.2]} 21. Bxb7
{[%clk 0:02:09.2]} 21... Rb8 {[%clk 0:01:45.6]} 22. Bd5 {[%clk 0:02:06.9]} 22...
Rxb2 {[%clk 0:01:42.2]} 23. Bxe6+ {[%clk 0:02:02.5]} 23... Nxe6 {[%clk
0:01:34.2]} 24. Ne4 {[%clk 0:01:52.5]} 24... Rxf1+ {[%clk 0:01:29.5]} 25. Qxf1
{[%clk 0:01:51.1]} 25... Nf4 {[%clk 0:01:29]} 26. Rb1 {[%clk 0:01:41.6]} 26...
Rg2+ {[%clk 0:01:11.7]} 27. Kh1 {[%clk 0:01:38.1]} 27... Qh4 {[%clk 0:01:13.2]}
28. Rb8+ {[%clk 0:01:24.6]} 28... Kh7 {[%clk 0:01:07.7]} 29. Rb7+ {[%clk
0:01:19.3]} 29... Kg6 {[%clk 0:01:08.7]} 30. Rb3 {[%clk 0:01:18.1]} 30... Rxa2
{[%clk 0:00:59.2]} 31. Nxd6 {[%clk 0:01:10.4]} 31... Rf2 {[%clk 0:00:48]} 32.
Qb1+ {[%clk 0:00:58.3]} 32... Kf6 {[%clk 0:00:28.6]} 33. Qf5+ {[%clk 0:00:50.9]}
33... Ke7 {[%clk 0:00:29.7]} 34. Rb7+ {[%clk 0:00:47.6]} 1-0